[Event "Titled Tuesday Blitz February 22 Early 2022"]
[White "Zhigalko, Sergei"]
[Black "Liang, Justin"]
[WhiteFideId "13502956"]
[BlackFideId "2099942"]
[WhiteElo "2662"]
[BlackElo "2467"]
[Result "1-0"]
[Round "01"]
[TimeControl "180+1"]
[Date "2022.02.22"]
[WhiteClock "0:00:05"]
[BlackClock "0:00:06"]

1. e4 {[%clk 0:03:00]}  c5 {[%clk 0:02:57]} 2. Nf3 {[%clk 0:03:01]}  e6 {[%clk 0:02:57]} 3. c3 {[%clk 0:03:00]}  Nf6 {[%clk 0:02:57]} 4. e5 {[%clk 0:03:00]}  Nd5 {[%clk 0:02:57]} 5. Bc4 {[%clk 0:03:01]}  Nb6 {[%clk 0:02:55]} 6. Bb3 {[%clk 0:03:01]}  d6 {[%clk 0:02:56]} 7. exd6 {[%clk 0:03:02]}  Bxd6 {[%clk 0:02:56]} 8. d4 {[%clk 0:03:02]}  Nc6 {[%clk 0:02:53]} 9. O-O {[%clk 0:03:02]}  cxd4 {[%clk 0:02:52]} 10. cxd4 {[%clk 0:03:02]}  O-O {[%clk 0:02:52]} 11. Nc3 {[%clk 0:03:02]}  Ne7 {[%clk 0:02:48]} 12. Re1 {[%clk 0:03:00]}  Bd7 {[%clk 0:02:44]} 13. Ne5 {[%clk 0:03:00]}  Ng6 {[%clk 0:02:39]} 14. Qh5 {[%clk 0:02:42]}  Bxe5 {[%clk 0:02:07]} 15. dxe5 {[%clk 0:02:41]}  Bc6 {[%clk 0:02:07]} 16. Bg5 {[%clk 0:02:30]}  Qc7 {[%clk 0:02:07]} 17. Re3 {[%clk 0:02:18]}  Rfe8 {[%clk 0:01:43]} 18. Rh3 {[%clk 0:02:02]}  Nf8 {[%clk 0:01:38]} 19. Re1 {[%clk 0:01:31]}  Nbd7 {[%clk 0:01:30]} 20. Bc2 {[%clk 0:01:22]}  f5 {[%clk 0:01:11]} 21. exf6 {[%clk 0:01:16]}  Nxf6 {[%clk 0:01:10]} 22. Bxf6 {[%clk 0:01:01]}  gxf6 {[%clk 0:01:11]} 23. Ree3 {[%clk 0:00:58]}  Re7 {[%clk 0:00:54]} 24. Qh6 {[%clk 0:00:55]}  Rg7 {[%clk 0:00:24]} 25. Rhg3 {[%clk 0:00:48]}  f5 {[%clk 0:00:24]} 26. Ne2 {[%clk 0:00:14]}  Be8 {[%clk 0:00:17]} 27. Rc3 {[%clk 0:00:12]}  Qe7 {[%clk 0:00:15]} 28. h4 {[%clk 0:00:12]}  Rg6 {[%clk 0:00:14]} 29. h5 {[%clk 0:00:11]}  Rxg3 {[%clk 0:00:07]} 30. Rxg3+ {[%clk 0:00:12]}  Kh8 {[%clk 0:00:08]} 31. Nd4 {[%clk 0:00:08]}  Qf7 {[%clk 0:00:04]} 32. Bb3 {[%clk 0:00:06]}  Bd7 {[%clk 0:00:04]} 33. Qg5 {[%clk 0:00:05]}  Rc8 {[%clk 0:00:03]} 34. Nf3 {[%clk 0:00:05]}  Rc5 {[%clk 0:00:03]} 35. Kh2 {[%clk 0:00:04]}  f4 {[%clk 0:00:03]} 36. Qxc5 {[%clk 0:00:04]}  fxg3+ {[%clk 0:00:04]} 37. fxg3 {[%clk 0:00:04]}  h6 {[%clk 0:00:03]} 38. Qd4+ {[%clk 0:00:04]}  Kg8 {[%clk 0:00:04]} 39. g4 {[%clk 0:00:04]}  Qg7 {[%clk 0:00:05]} 40. Qe4 {[%clk 0:00:04]}  Bc6 {[%clk 0:00:05]} 41. Bxe6+ {[%clk 0:00:04]}  Kh8 {[%clk 0:00:05]} 42. Qf5 {[%clk 0:00:04]}  Qc7+ {[%clk 0:00:04]} 43. Kh3 {[%clk 0:00:04]}  Nxe6 {[%clk 0:00:05]} 44. Qxe6 {[%clk 0:00:04]}  Qg7 {[%clk 0:00:05]} 45. Qf5 {[%clk 0:00:03]}  Bd7 {[%clk 0:00:05]} 46. Qf4 {[%clk 0:00:03]}  Bc8 {[%clk 0:00:05]} 47. b3 {[%clk 0:00:03]}  Kh7 {[%clk 0:00:05]} 48. Kg3 {[%clk 0:00:03]}  Kg8 {[%clk 0:00:05]} 49. Qe4 {[%clk 0:00:03]}  Bd7 {[%clk 0:00:05]} 50. Ne5 {[%clk 0:00:03]}  Be8 {[%clk 0:00:04]} 51. Qd5+ {[%clk 0:00:03]}  Kh7 {[%clk 0:00:04]} 52. Qe4+ {[%clk 0:00:02]}  Kg8 {[%clk 0:00:04]} 53. Qf4 {[%clk 0:00:03]}  Kh7 {[%clk 0:00:04]} 54. Kf3 {[%clk 0:00:03]}  Kg8 {[%clk 0:00:04]} 55. Qe4 {[%clk 0:00:04]}  Qf6+ {[%clk 0:00:04]} 56. Qf5 {[%clk 0:00:04]}  Bc6+ {[%clk 0:00:03]} 57. Kf4 {[%clk 0:00:03]}  Qg7 {[%clk 0:00:01]} 58. Qg6 {[%clk 0:00:04]}  Qxg6 {[%clk 0:00:01]} 59. Nxg6 {[%clk 0:00:04]}  Kg7 {[%clk 0:00:01]} 60. g3 {[%clk 0:00:04]}  Be8 {[%clk 0:00:01]} 61. g5 {[%clk 0:00:03]}  hxg5+ {[%clk 0:00:02]} 62. Kxg5 {[%clk 0:00:04]}  Bxg6 {[%clk 0:00:02]} 63. hxg6 {[%clk 0:00:05]}  b6 {[%clk 0:00:03]} 64. Kf5 {[%clk 0:00:05]}  a5 {[%clk 0:00:04]} 65. a4 {[%clk 0:00:05]}  b5 {[%clk 0:00:05]} 66. axb5 {[%clk 0:00:05]}  Kf8 {[%clk 0:00:05]} 67. Ke5 {[%clk 0:00:05]}  Kg7 {[%clk 0:00:06]} 68. b6 {[%clk 0:00:05]} 1-0


[Site "https://www.chess.com"]

[Event "Titled Tuesday Blitz February 22 Early 2022"]
[White "Araujo, Everson De Moura"]
[Black "Shtyka, Sergey"]
[WhiteFideId "22737197"]
[BlackFideId "4138465"]
[WhiteElo "1861"]
[BlackElo "2014"]
[Result "0-1"]
[Round "02"]
[TimeControl "180+1"]
[Date "2022.02.22"]
[WhiteClock "0:02:18"]
[BlackClock "0:01:48"]

1. Nf3 {[%clk 0:03:00]}  c5 {[%clk 0:02:58]} 2. b3 {[%clk 0:03:01]}  Nf6 {[%clk 0:02:57]} 3. Bb2 {[%clk 0:03:01]}  g6 {[%clk 0:02:58]} 4. e3 {[%clk 0:03:01]}  Bg7 {[%clk 0:02:58]} 5. Be2 {[%clk 0:03:01]}  O-O {[%clk 0:02:58]} 6. O-O {[%clk 0:03:01]}  d5 {[%clk 0:02:59]} 7. d4 {[%clk 0:03:01]}  b6 {[%clk 0:02:58]} 8. Nbd2 {[%clk 0:03:01]}  Ba6 {[%clk 0:02:55]} 9. c4 {[%clk 0:02:58]}  Nbd7 {[%clk 0:02:49]} 10. cxd5 {[%clk 0:02:57]}  Bxe2 {[%clk 0:02:48]} 11. Qxe2 {[%clk 0:02:57]}  Nxd5 {[%clk 0:02:48]} 12. Rfd1 {[%clk 0:02:57]}  cxd4 {[%clk 0:02:42]} 13. Bxd4 {[%clk 0:02:51]}  Nc3 {[%clk 0:02:37]} 14. Bxc3 {[%clk 0:02:50]}  Bxc3 {[%clk 0:02:37]} 15. Rac1 {[%clk 0:02:50]}  Bb2 {[%clk 0:02:28]} 16. Rc2 {[%clk 0:02:46]}  Bg7 {[%clk 0:02:25]} 17. Nc4 {[%clk 0:02:45]}  Qe8 {[%clk 0:02:24]} 18. b4 {[%clk 0:02:37]}  Rc8 {[%clk 0:02:19]} 19. Rcd2 {[%clk 0:02:36]}  Nf6 {[%clk 0:02:06]} 20. a3 {[%clk 0:02:36]}  Qb5 {[%clk 0:02:01]} 21. Nce5 {[%clk 0:02:26]}  Qxe2 {[%clk 0:02:00]} 22. Rxe2 {[%clk 0:02:27]}  Ne4 {[%clk 0:01:54]} 23. Rd7 {[%clk 0:02:18]}  Bxe5 {[%clk 0:01:48]} 0-1


[Site "https://www.chess.com"]

[Event "Titled Tuesday Blitz February 22 Early 2022"]
[White "Baker, Chris W"]
[Black "Korkmaz, Necmettin"]
[WhiteFideId "401676"]
[BlackFideId "6303285"]
[WhiteElo "2204"]
[BlackElo "2094"]
[Result "0-1"]
[Round "02"]
[TimeControl "180+1"]
[Date "2022.02.22"]
[WhiteClock "0:01:41"]
[BlackClock "0:01:54"]

1. c4 {[%clk 0:03:00]}  e5 {[%clk 0:02:58]} 2. Nc3 {[%clk 0:02:59]}  Nc6 {[%clk 0:02:52]} 3. g3 {[%clk 0:02:59]}  f5 {[%clk 0:02:52]} 4. Bg2 {[%clk 0:02:58]}  Nf6 {[%clk 0:02:51]} 5. d3 {[%clk 0:02:56]}  Bc5 {[%clk 0:02:49]} 6. Bg5 {[%clk 0:02:49]}  Bxf2+ {[%clk 0:02:45]} 7. Kf1 {[%clk 0:02:42]}  Bc5 {[%clk 0:02:32]} 8. Nf3 {[%clk 0:02:36]}  O-O {[%clk 0:02:21]} 9. Nd5 {[%clk 0:02:25]}  Be7 {[%clk 0:02:20]} 10. Nxe7+ {[%clk 0:02:24]}  Qxe7 {[%clk 0:02:20]} 11. Qd2 {[%clk 0:02:17]}  e4 {[%clk 0:02:14]} 12. Nh4 {[%clk 0:02:11]}  d6 {[%clk 0:02:11]} 13. d4 {[%clk 0:01:56]}  Qf7 {[%clk 0:01:56]} 14. Rc1 {[%clk 0:01:50]}  h6 {[%clk 0:01:56]} 15. Bxf6 {[%clk 0:01:48]}  Qxf6 {[%clk 0:01:56]} 16. d5 {[%clk 0:01:41]}  Ne5 {[%clk 0:01:54]} 0-1


[Site "https://www.chess.com"]

[Event "Titled Tuesday Blitz February 22 Early 2022"]
[White "Barrientos, Sergio E"]
[Black "Deac, Bogdan-Daniel"]
[WhiteFideId "4401824"]
[BlackFideId "1226380"]
[WhiteElo "2441"]
[BlackElo "2646"]
[Result "0-1"]
[Round "02"]
[TimeControl "180+1"]
[Date "2022.02.22"]
[WhiteClock "0:00:08"]
[BlackClock "0:00:03"]

1. d4 {[%clk 0:03:00]}  Nf6 {[%clk 0:02:59]} 2. Nf3 {[%clk 0:02:58]}  d5 {[%clk 0:02:59]} 3. c4 {[%clk 0:02:58]}  e6 {[%clk 0:02:59]} 4. g3 {[%clk 0:02:54]}  Be7 {[%clk 0:02:59]} 5. Bg2 {[%clk 0:02:54]}  O-O {[%clk 0:03:00]} 6. O-O {[%clk 0:02:55]}  dxc4 {[%clk 0:03:00]} 7. Qc2 {[%clk 0:02:54]}  a6 {[%clk 0:02:59]} 8. a4 {[%clk 0:02:54]}  c5 {[%clk 0:02:58]} 9. dxc5 {[%clk 0:02:49]}  Bxc5 {[%clk 0:02:58]} 10. Qxc4 {[%clk 0:02:48]}  b6 {[%clk 0:02:58]} 11. b4 {[%clk 0:02:34]}  Be7 {[%clk 0:02:54]} 12. Bb2 {[%clk 0:02:34]}  Bb7 {[%clk 0:02:51]} 13. Nbd2 {[%clk 0:02:27]}  Nbd7 {[%clk 0:02:40]} 14. Rfd1 {[%clk 0:02:27]}  Rc8 {[%clk 0:02:35]} 15. Qf4 {[%clk 0:02:27]}  Nd5 {[%clk 0:02:26]} 16. Qg4 {[%clk 0:02:16]}  N7f6 {[%clk 0:02:23]} 17. Qh4 {[%clk 0:02:12]}  Bxb4 {[%clk 0:01:17]} 18. Nc4 {[%clk 0:01:27]}  Qe7 {[%clk 0:00:56]} 19. Rac1 {[%clk 0:01:18]}  b5 {[%clk 0:00:50]} 20. axb5 {[%clk 0:01:18]}  axb5 {[%clk 0:00:51]} 21. Nce5 {[%clk 0:01:18]}  Rxc1 {[%clk 0:00:26]} 22. Rxc1 {[%clk 0:01:18]}  Rc8 {[%clk 0:00:27]} 23. Rxc8+ {[%clk 0:01:05]}  Bxc8 {[%clk 0:00:26]} 24. Ng5 {[%clk 0:01:04]}  Bc3 {[%clk 0:00:19]} 25. Bxc3 {[%clk 0:00:39]}  Nxc3 {[%clk 0:00:19]} 26. Ngxf7 {[%clk 0:00:38]}  Nxe2+ {[%clk 0:00:19]} 27. Kf1 {[%clk 0:00:38]}  Nc3 {[%clk 0:00:19]} 28. Qd4 {[%clk 0:00:28]}  Ncd5 {[%clk 0:00:15]} 29. h3 {[%clk 0:00:24]}  b4 {[%clk 0:00:13]} 30. Qc4 {[%clk 0:00:22]}  Bb7 {[%clk 0:00:12]} 31. Kg1 {[%clk 0:00:21]}  h6 {[%clk 0:00:10]} 32. Qb5 {[%clk 0:00:20]}  Qc7 {[%clk 0:00:08]} 33. Kh2 {[%clk 0:00:20]}  Bc8 {[%clk 0:00:06]} 34. Qa4 {[%clk 0:00:18]}  Bd7 {[%clk 0:00:05]} 35. Qa8+ {[%clk 0:00:17]}  Be8 {[%clk 0:00:05]} 36. Qa6 {[%clk 0:00:15]}  Bxf7 {[%clk 0:00:05]} 37. Qa8+ {[%clk 0:00:13]}  Be8 {[%clk 0:00:05]} 38. Qa6 {[%clk 0:00:13]}  Qe7 {[%clk 0:00:04]} 39. Qc8 {[%clk 0:00:12]}  b3 {[%clk 0:00:04]} 40. Qb8 {[%clk 0:00:12]}  Qc7 {[%clk 0:00:03]} 41. Bxd5 {[%clk 0:00:08]}  Qxb8 {[%clk 0:00:03]} 0-1


[Site "https://www.chess.com"]

[Event "Titled Tuesday Blitz February 22 Early 2022"]
[White "Bernadskiy, Vitaliy"]
[Black "Vifleemskaia, Svetlana"]
[WhiteFideId "14100371"]
[BlackFideId "4129490"]
[WhiteElo "2473"]
[BlackElo "1901"]
[Result "1-0"]
[Round "02"]
[TimeControl "180+1"]
[Date "2022.02.22"]
[WhiteClock "0:01:15"]
[BlackClock "0:00:04"]

1. e4 {[%clk 0:03:00]}  e5 {[%clk 0:02:58]} 2. c4 {[%clk 0:02:59]}  Nf6 {[%clk 0:02:57]} 3. Nc3 {[%clk 0:03:00]}  Bc5 {[%clk 0:02:56]} 4. g3 {[%clk 0:03:01]}  d6 {[%clk 0:02:55]} 5. Bg2 {[%clk 0:03:01]}  a5 {[%clk 0:02:54]} 6. Nge2 {[%clk 0:03:00]}  Nc6 {[%clk 0:02:54]} 7. O-O {[%clk 0:03:01]}  O-O {[%clk 0:02:54]} 8. d3 {[%clk 0:03:01]}  Nd4 {[%clk 0:02:53]} 9. Nxd4 {[%clk 0:02:58]}  Bxd4 {[%clk 0:02:52]} 10. Ne2 {[%clk 0:02:58]}  Bc5 {[%clk 0:02:51]} 11. h3 {[%clk 0:02:57]}  h6 {[%clk 0:02:49]} 12. Kh1 {[%clk 0:02:54]}  c6 {[%clk 0:02:49]} 13. f4 {[%clk 0:02:54]}  Nh5 {[%clk 0:02:44]} 14. f5 {[%clk 0:02:47]}  Nf6 {[%clk 0:02:36]} 15. Nc3 {[%clk 0:02:35]}  Rb8 {[%clk 0:02:24]} 16. a4 {[%clk 0:02:33]}  Bd4 {[%clk 0:02:22]} 17. g4 {[%clk 0:02:33]}  Nh7 {[%clk 0:02:16]} 18. Qe1 {[%clk 0:02:28]}  Bxc3 {[%clk 0:02:00]} 19. bxc3 {[%clk 0:02:26]}  b5 {[%clk 0:01:56]} 20. cxb5 {[%clk 0:02:23]}  cxb5 {[%clk 0:01:56]} 21. axb5 {[%clk 0:02:24]}  Rxb5 {[%clk 0:01:56]} 22. Bd2 {[%clk 0:02:21]}  Ba6 {[%clk 0:01:52]} 23. c4 {[%clk 0:02:20]}  Rb3 {[%clk 0:01:50]} 24. Rxa5 {[%clk 0:02:13]}  Qb6 {[%clk 0:01:45]} 25. Be3 {[%clk 0:02:09]}  Qb7 {[%clk 0:01:41]} 26. Rd5 {[%clk 0:02:05]}  Qc6 {[%clk 0:01:37]} 27. Qh4 {[%clk 0:01:57]}  Bxc4 {[%clk 0:01:31]} 28. f6 {[%clk 0:01:27]}  Bxd5 {[%clk 0:00:47]} 29. fxg7 {[%clk 0:01:26]}  Rfb8 {[%clk 0:00:30]} 30. exd5 {[%clk 0:01:26]}  Qc2 {[%clk 0:00:24]} 31. Be4 {[%clk 0:01:15]}  f5 {[%clk 0:00:04]} 32. Bxf5 {[%clk 0:01:15]} 1-0


[Site "https://www.chess.com"]

[Event "Titled Tuesday Blitz February 22 Early 2022"]
[White "Bluebaum, Matthias"]
[Black "Budrewicz, Krzysztof"]
[WhiteFideId "24651516"]
[BlackFideId "1127950"]
[WhiteElo "2550"]
[BlackElo "2248"]
[Result "1-0"]
[Round "02"]
[TimeControl "180+1"]
[Date "2022.02.22"]
[WhiteClock "0:00:11"]
[BlackClock "0:00:17"]

1. b3 {[%clk 0:03:00]}  e5 {[%clk 0:02:56]} 2. Bb2 {[%clk 0:03:01]}  Nc6 {[%clk 0:02:54]} 3. e3 {[%clk 0:03:02]}  Nf6 {[%clk 0:02:51]} 4. Nf3 {[%clk 0:03:02]}  Bd6 {[%clk 0:02:51]} 5. d4 {[%clk 0:03:02]}  Qe7 {[%clk 0:02:46]} 6. Nc3 {[%clk 0:02:59]}  a6 {[%clk 0:02:43]} 7. dxe5 {[%clk 0:02:50]}  Nxe5 {[%clk 0:02:43]} 8. Nd5 {[%clk 0:02:50]}  Nxd5 {[%clk 0:02:43]} 9. Qxd5 {[%clk 0:02:51]}  c6 {[%clk 0:02:31]} 10. Qd4 {[%clk 0:02:50]}  Nxf3+ {[%clk 0:02:17]} 11. gxf3 {[%clk 0:02:50]}  f6 {[%clk 0:02:17]} 12. f4 {[%clk 0:02:47]}  Bc5 {[%clk 0:02:15]} 13. Qd2 {[%clk 0:02:17]}  d5 {[%clk 0:02:15]} 14. O-O-O {[%clk 0:02:16]}  Bf5 {[%clk 0:02:12]} 15. Rg1 {[%clk 0:02:16]}  O-O-O {[%clk 0:02:12]} 16. Bd3 {[%clk 0:02:14]}  Be4 {[%clk 0:01:39]} 17. Kb1 {[%clk 0:02:08]}  Rhe8 {[%clk 0:01:37]} 18. Qe2 {[%clk 0:02:05]}  Rd7 {[%clk 0:01:35]} 19. h4 {[%clk 0:01:46]}  Bxd3 {[%clk 0:01:31]} 20. Qxd3 {[%clk 0:01:45]}  Qe4 {[%clk 0:01:24]} 21. Qxe4 {[%clk 0:01:46]}  Rxe4 {[%clk 0:01:24]} 22. h5 {[%clk 0:01:46]}  h6 {[%clk 0:01:21]} 23. Rg6 {[%clk 0:01:32]}  d4 {[%clk 0:01:12]} 24. Bc1 {[%clk 0:01:30]}  Ree7 {[%clk 0:01:08]} 25. Re1 {[%clk 0:01:05]}  Kd8 {[%clk 0:00:59]} 26. e4 {[%clk 0:00:47]}  Ke8 {[%clk 0:00:58]} 27. f3 {[%clk 0:00:41]}  Kf8 {[%clk 0:00:56]} 28. Rd1 {[%clk 0:00:40]}  Kf7 {[%clk 0:00:49]} 29. f5 {[%clk 0:00:40]}  b5 {[%clk 0:00:37]} 30. Rd2 {[%clk 0:00:39]}  Bb6 {[%clk 0:00:35]} 31. Rdg2 {[%clk 0:00:39]}  Ke8 {[%clk 0:00:34]} 32. Bxh6 {[%clk 0:00:38]}  d3 {[%clk 0:00:28]} 33. cxd3 {[%clk 0:00:38]}  Rxd3 {[%clk 0:00:28]} 34. Rxg7 {[%clk 0:00:38]}  Rxf3 {[%clk 0:00:28]} 35. Rxe7+ {[%clk 0:00:27]}  Kxe7 {[%clk 0:00:29]} 36. Rh2 {[%clk 0:00:20]}  Bd4 {[%clk 0:00:28]} 37. Bg7 {[%clk 0:00:14]}  Kf7 {[%clk 0:00:28]} 38. h6 {[%clk 0:00:15]}  Rf1+ {[%clk 0:00:26]} 39. Kc2 {[%clk 0:00:15]}  Rf2+ {[%clk 0:00:26]} 40. Rxf2 {[%clk 0:00:15]}  Bxf2 {[%clk 0:00:27]} 41. Kd3 {[%clk 0:00:15]}  Bg3 {[%clk 0:00:27]} 42. Kd4 {[%clk 0:00:14]}  Bf2+ {[%clk 0:00:26]} 43. Kc3 {[%clk 0:00:14]}  c5 {[%clk 0:00:24]} 44. Kd3 {[%clk 0:00:13]}  Bg3 {[%clk 0:00:23]} 45. Bh8 {[%clk 0:00:12]}  Be5 {[%clk 0:00:22]} 46. h7 {[%clk 0:00:11]}  Bd4 {[%clk 0:00:20]} 47. b4 {[%clk 0:00:10]}  Bf2 {[%clk 0:00:20]} 48. bxc5 {[%clk 0:00:10]}  Bxc5 {[%clk 0:00:19]} 49. e5 {[%clk 0:00:11]}  Bf8 {[%clk 0:00:17]} 50. Bxf6 {[%clk 0:00:11]} 1-0


[Site "https://www.chess.com"]

[Event "Titled Tuesday Blitz February 22 Early 2022"]
[White "Brunner, Nicolas"]
[Black "Papasimakopoulos, Alexandros"]
[WhiteFideId "620246"]
[BlackFideId "4244125"]
[WhiteElo "2372"]
[BlackElo "2340"]
[Result "1/2-1/2"]
[Round "02"]
[TimeControl "180+1"]
[Date "2022.02.22"]
[WhiteClock "0:00:17"]
[BlackClock "0:00:50"]

1. d4 {[%clk 0:03:00]}  e6 {[%clk 0:02:58]} 2. e4 {[%clk 0:03:00]}  d5 {[%clk 0:02:57]} 3. Nc3 {[%clk 0:02:58]}  Bb4 {[%clk 0:02:57]} 4. e5 {[%clk 0:02:55]}  b6 {[%clk 0:02:57]} 5. f4 {[%clk 0:02:53]}  Nh6 {[%clk 0:02:56]} 6. Nf3 {[%clk 0:02:51]}  Ba6 {[%clk 0:02:52]} 7. Bxa6 {[%clk 0:02:47]}  Nxa6 {[%clk 0:02:53]} 8. Qd3 {[%clk 0:02:47]}  Qc8 {[%clk 0:02:53]} 9. a3 {[%clk 0:02:40]}  Bxc3+ {[%clk 0:02:48]} 10. Qxc3 {[%clk 0:02:40]}  c5 {[%clk 0:02:47]} 11. O-O {[%clk 0:02:37]}  Nf5 {[%clk 0:02:46]} 12. dxc5 {[%clk 0:02:27]}  Qxc5+ {[%clk 0:02:45]} 13. Qxc5 {[%clk 0:02:26]}  Nxc5 {[%clk 0:02:41]} 14. b3 {[%clk 0:02:19]}  Rc8 {[%clk 0:02:40]} 15. Bb2 {[%clk 0:02:18]}  h5 {[%clk 0:02:37]} 16. Rac1 {[%clk 0:02:13]}  Ke7 {[%clk 0:02:33]} 17. a4 {[%clk 0:02:03]}  Kd7 {[%clk 0:02:31]} 18. Rfd1 {[%clk 0:01:59]}  Rhd8 {[%clk 0:02:31]} 19. Ba3 {[%clk 0:01:57]}  Ke8 {[%clk 0:02:27]} 20. Nd4 {[%clk 0:01:51]}  Nxd4 {[%clk 0:02:24]} 21. Rxd4 {[%clk 0:01:51]}  g6 {[%clk 0:02:16]} 22. g3 {[%clk 0:01:44]}  Rc6 {[%clk 0:02:16]} 23. Bxc5 {[%clk 0:01:33]}  bxc5 {[%clk 0:02:10]} 24. Rd3 {[%clk 0:01:33]}  c4 {[%clk 0:02:10]} 25. Rc3 {[%clk 0:01:30]}  Rdc8 {[%clk 0:02:09]} 26. b4 {[%clk 0:01:19]}  d4 {[%clk 0:02:10]} 27. Ra3 {[%clk 0:01:19]}  c3 {[%clk 0:02:09]} 28. Rd1 {[%clk 0:01:17]}  Rc4 {[%clk 0:02:09]} 29. b5 {[%clk 0:01:15]}  Rb4 {[%clk 0:02:03]} 30. Kf1 {[%clk 0:01:01]}  Rb2 {[%clk 0:01:59]} 31. Rc1 {[%clk 0:01:01]}  Rd8 {[%clk 0:01:50]} 32. Ke1 {[%clk 0:00:42]}  Ke7 {[%clk 0:01:40]} 33. h4 {[%clk 0:00:41]}  Rd5 {[%clk 0:01:36]} 34. Kd1 {[%clk 0:00:32]}  d3 {[%clk 0:01:31]} 35. Rxc3 {[%clk 0:00:30]}  dxc2+ {[%clk 0:01:29]} 36. Ke2 {[%clk 0:00:28]}  Rb4 {[%clk 0:01:27]} 37. Rc7+ {[%clk 0:00:24]}  Rd7 {[%clk 0:01:27]} 38. R1xc2 {[%clk 0:00:22]}  Re4+ {[%clk 0:01:27]} 39. Kf3 {[%clk 0:00:21]}  Rxa4 {[%clk 0:01:28]} 40. Rc8 {[%clk 0:00:14]}  Rd3+ {[%clk 0:01:04]} 41. Kf2 {[%clk 0:00:14]}  Rb4 {[%clk 0:01:04]} 42. R2c7+ {[%clk 0:00:10]}  Rd7 {[%clk 0:01:04]} 43. Rxd7+ {[%clk 0:00:10]}  Kxd7 {[%clk 0:01:05]} 44. Rf8 {[%clk 0:00:10]}  Ke7 {[%clk 0:01:03]} 45. Ra8 {[%clk 0:00:10]}  Rxb5 {[%clk 0:00:55]} 46. Rxa7+ {[%clk 0:00:11]}  Kf8 {[%clk 0:00:56]} 47. Ra8+ {[%clk 0:00:11]}  Kg7 {[%clk 0:00:56]} 48. Kg2 {[%clk 0:00:12]}  Rb2+ {[%clk 0:00:56]} 49. Kh3 {[%clk 0:00:12]}  Rd2 {[%clk 0:00:52]} 50. Rb8 {[%clk 0:00:12]}  Ra2 {[%clk 0:00:52]} 51. Rc8 {[%clk 0:00:13]}  Ra7 {[%clk 0:00:52]} 52. Rb8 {[%clk 0:00:13]}  f6 {[%clk 0:00:52]} 53. exf6+ {[%clk 0:00:13]}  Kxf6 {[%clk 0:00:53]} 54. Rb5 {[%clk 0:00:13]}  Ra2 {[%clk 0:00:52]} 55. Re5 {[%clk 0:00:13]}  Rd2 {[%clk 0:00:52]} 56. Rg5 {[%clk 0:00:12]}  Re2 {[%clk 0:00:52]} 57. Rb5 {[%clk 0:00:12]}  e5 {[%clk 0:00:53]} 58. fxe5+ {[%clk 0:00:12]}  Rxe5 {[%clk 0:00:54]} 59. Rb6+ {[%clk 0:00:13]}  Kf5 {[%clk 0:00:54]} 60. Kg2 {[%clk 0:00:13]}  Re3 {[%clk 0:00:53]} 61. Rb5+ {[%clk 0:00:13]}  Kf6 {[%clk 0:00:54]} 62. Rb6+ {[%clk 0:00:14]}  Kg7 {[%clk 0:00:54]} 63. Rb5 {[%clk 0:00:14]}  Ra3 {[%clk 0:00:53]} 64. Rc5 {[%clk 0:00:14]}  Kf6 {[%clk 0:00:52]} 65. Rc6+ {[%clk 0:00:14]}  Kg7 {[%clk 0:00:53]} 66. Rc5 {[%clk 0:00:15]}  Ra6 {[%clk 0:00:52]} 67. Rb5 {[%clk 0:00:15]}  Kf6 {[%clk 0:00:52]} 68. Rc5 {[%clk 0:00:15]}  Rb6 {[%clk 0:00:53]} 69. Rd5 {[%clk 0:00:15]}  Rb2+ {[%clk 0:00:53]} 70. Kh3 {[%clk 0:00:15]}  Rc2 {[%clk 0:00:54]} 71. Ra5 {[%clk 0:00:15]}  Rc6 {[%clk 0:00:53]} 72. Rb5 {[%clk 0:00:16]}  Re6 {[%clk 0:00:53]} 73. Ra5 {[%clk 0:00:16]}  Re5 {[%clk 0:00:54]} 74. Ra6+ {[%clk 0:00:16]}  Kf5 {[%clk 0:00:54]} 75. Rb6 {[%clk 0:00:16]}  Re6 {[%clk 0:00:54]} 76. Rb5+ {[%clk 0:00:15]}  Re5 {[%clk 0:00:54]} 77. Rb6 {[%clk 0:00:16]}  Ra5 {[%clk 0:00:54]} 78. Rc6 {[%clk 0:00:16]}  Ra1 {[%clk 0:00:53]} 79. Rb6 {[%clk 0:00:16]}  Re1 {[%clk 0:00:52]} 80. Kg2 {[%clk 0:00:16]}  Re5 {[%clk 0:00:49]} 81. Rc6 {[%clk 0:00:16]}  g5 {[%clk 0:00:49]} 82. hxg5 {[%clk 0:00:16]}  Kxg5 {[%clk 0:00:50]} 83. Kh3 {[%clk 0:00:16]}  Ra5 {[%clk 0:00:49]} 84. Rb6 {[%clk 0:00:16]}  Rc5 {[%clk 0:00:49]} 85. Ra6 {[%clk 0:00:16]}  Rb5 {[%clk 0:00:49]} 86. Rc6 {[%clk 0:00:16]}  Ra5 {[%clk 0:00:49]} 87. Rb6 {[%clk 0:00:17]}  Rc5 {[%clk 0:00:50]} 88. Ra6 {[%clk 0:00:17]}  Rb5 {[%clk 0:00:50]} 89. Rc6 {[%clk 0:00:17]}  Ra5 {[%clk 0:00:50]} 1/2-1/2


[Site "https://www.chess.com"]

[Event "Titled Tuesday Blitz February 22 Early 2022"]
[White "Cabarkapa, Novak"]
[Black "Reprintsev, Alexander"]
[WhiteFideId "943746"]
[BlackFideId "14100541"]
[WhiteElo "2443"]
[BlackElo "2126"]
[Result "1-0"]
[Round "02"]
[TimeControl "180+1"]
[Date "2022.02.22"]
[WhiteClock "0:01:15"]
[BlackClock "0:00:58"]

1. h4 {[%clk 0:03:00]}  d5 {[%clk 0:02:56]} 2. h5 {[%clk 0:03:00]}  e5 {[%clk 0:02:55]} 3. c3 {[%clk 0:03:00]}  Nc6 {[%clk 0:02:54]} 4. d4 {[%clk 0:03:00]}  Qe7 {[%clk 0:02:50]} 5. Nf3 {[%clk 0:02:54]}  e4 {[%clk 0:02:49]} 6. Ng1 {[%clk 0:02:55]}  h6 {[%clk 0:02:45]} 7. Bf4 {[%clk 0:02:54]}  Be6 {[%clk 0:02:36]} 8. e3 {[%clk 0:02:53]}  O-O-O {[%clk 0:02:36]} 9. Na3 {[%clk 0:02:52]}  a6 {[%clk 0:02:31]} 10. Qa4 {[%clk 0:02:52]}  Bd7 {[%clk 0:02:29]} 11. Bxa6 {[%clk 0:02:51]}  Nb8 {[%clk 0:02:25]} 12. Bb5 {[%clk 0:02:41]}  g5 {[%clk 0:02:08]} 13. Be5 {[%clk 0:02:35]}  f6 {[%clk 0:02:08]} 14. Bg3 {[%clk 0:02:35]}  f5 {[%clk 0:02:08]} 15. Qa5 {[%clk 0:02:29]}  f4 {[%clk 0:02:07]} 16. exf4 {[%clk 0:02:28]}  e3 {[%clk 0:01:51]} 17. f5 {[%clk 0:02:17]}  Bxf5 {[%clk 0:01:47]} 18. Nf3 {[%clk 0:02:07]}  Rh7 {[%clk 0:01:38]} 19. Ne5 {[%clk 0:01:58]}  Bg7 {[%clk 0:01:29]} 20. fxe3 {[%clk 0:01:51]}  Bxe5 {[%clk 0:01:29]} 21. Bxe5 {[%clk 0:01:45]}  Be4 {[%clk 0:01:29]} 22. O-O {[%clk 0:01:39]}  g4 {[%clk 0:01:24]} 23. Ba4 {[%clk 0:01:24]}  g3 {[%clk 0:01:03]} 24. Nb5 {[%clk 0:01:23]}  Na6 {[%clk 0:01:03]} 25. Na7+ {[%clk 0:01:18]}  Kb8 {[%clk 0:01:03]} 26. Nc6+ {[%clk 0:01:18]}  bxc6 {[%clk 0:01:03]} 27. Qb6+ {[%clk 0:01:19]}  Kc8 {[%clk 0:01:01]} 28. Qxa6+ {[%clk 0:01:18]}  Kb8 {[%clk 0:00:58]} 29. Bxc6 {[%clk 0:01:15]} 1-0


[Site "https://www.chess.com"]